{"text_format":"1","workbook":"xlsx","n_sheets":3,"sheets":["Mon camp","Résultats","Données"],"not_rendered":{"charts":6,"images":27,"macros":1,"external_links":0,"defined_names":29,"comments":0,"pivot_tables":0},"unopened":[],"bounds":{"document_bytes":16777216,"sheet_cells":100000,"rows_first":2000,"rows_last":500,"rows_between":2000,"halvings":0,"cell_chars":16384,"cell_head_chars":4096},"cells_cut":0,"cells_raw":0,"read":"whole","date_system":"1900"}

{"sheet":"Mon camp","index":0,"n_rows":53,"n_cols":17,"rows_kept":53,"cut":false,"hidden":false,"merged":[[7,1,9,3],[10,1,17,3],[20,1,26,3],[28,1,33,3],[35,1,40,3],[47,16,50,17],[9,12,9,13],[10,12,11,13],[12,12,13,13],[18,12,19,13],[21,12,22,13],[24,12,25,13],[19,16,23,17],[19,14,19,15],[22,14,22,15],[12,16,16,17],[39,16,43,17],[21,6,23,7],[27,12,29,13],[9,6,9,7],[12,6,12,7],[11,14,11,15],[14,12,15,13],[15,6,15,7],[27,9,29,10],[52,5,54,15],[48,6,49,7],[35,14,35,15],[25,14,25,15],[44,6,46,7],[38,6,39,7],[30,14,30,17],[41,6,43,7],[44,12,46,12],[32,6,34,6],[32,9,36,10],[44,9,45,10],[24,6,25,7],[29,6,30,7],[35,6,36,7],[37,14,37,16]]}
[]
[]
[]
[]
[null,null,null,null,null,null,"Description du camp"]
[]
[]
[null,"Bienvenue !",null,null,null,null,"En quelques chiffres",null,null,null,null,null,"Transports et déplacements"]
[]
[null,null,null,null,null,null,"Durée du camp",null,null,null,null,null,"Transport sur le camp"]
[null,"Te voilà arrivé·e sur l'outil des Eclaireuses Eclaireurs de France qui va te permettre d'estimer l'impact carbone de ton camp. Tu pourras ensuite savoir quelles sont tes leviers d'action pour participer à la transition écologique de nos activités.",null,null,null,null,null,null,null,"jours",null,null,"Mode de transport sur le camp"]
[]
[null,null,null,null,null,null,"Nombre de responsables",null,null,null,null,null,{"$f":"_xlfn.SWITCH(modeTrCamp,\"Voiture\",\"Nombre de voitures sur le camp\",\"Minibus\",\"Nombre de minibus sur le camp\",\"Vélo - Marche\",\"Non applicable\",\"Non Applicable\")","v":"Non Applicable"},null,null,null,"Note:\nIndiquer la distance totale moyenne parcourue par véhicule pour le convoyage aller et retour des véhicules sur le camp, hors transport de matériel"]
[null,null,null,null,null,null,"y compris équipe intendance",null,null,"responsables"]
[null,null,null,null,null,null,null,null,null,null,null,null,"Distance convoyage véhicules (aller-retour)"]
[null,null,null,null,null,null,"Nombre de jeunes",null,null,null,null,null,null,null,null,"km"]
[null,null,null,null,null,null,null,null,null,"lutin·es"]
[null,null,null,null,null,null,null,null,null,"louveteaux·louvettes",null,null,"Transport Aller-Retour au camp"]
[null,null,null,null,null,null,null,null,null,"éclé·es",null,null,"Mode de transport 1 (paticipant·es)"]
[null,"Comment ça marche ?",null,null,null,null,null,null,null,"aîné·es",null,null,null,null,null,null,"Note:\nSi le trajet est effectué en covoiturage ou car, pensez bien à doubler le nombre de kilomètres pour prendre en compte le trajet effectué seuls par les parents"]
[null,"Cet outil est réparti en deux pages, un première pour la saisie des informations de ton camp et de tes pratiques, celle-ci; et une seconde qui te présente les résultats de l'estimation du bilan carbone de ton camp.",null,null,null,null,null,null,null,null,null,null,null,"distance aller",null,"km"]
[null,null,null,null,null,null,"Terrain de camp",null,null,null,null,null,"Mode de transport 2 (participant·es)"]
[]
[null,null,null,null,null,null,null,null,null,null,null,null,null,"distance aller",null,"km"]
[null,null,null,null,null,null,"Distance jusqu'à mon lieu de camp par la route",null,null,null,null,null,"Mode de transport du matériel"]
[null,null,null,null,null,null,null,null,null,"km"]
[]
[null,null,null,null,null,null,"Appui en dur avec chauffe-eau",null,null,null,null,null,"Alimentation"]
[null,"Tu peux donc commencer par remplir les informations dans les cases claires, selon les indications; et ensuite cliquer sur \"Résultats\" pour découvrir le bilan carbone de ton camp."]
[null,null,null,null,null,null,"Distance jusqu'au lieu des achats alimentaires (aller)"]
[null,null,null,null,null,null,null,null,null,"km",null,null,"Projet alimentaire "]
[]
[null,null,null,null,null,null,"Visites",null,null,"Note:\nOn compte dans les visites tout déplacement non déjà inclus (visiteur sur le camp, repérage préalable, etc.)",null,null,"Petits déjeuners",null,null,"petits-déjeuners traditionnels"]
[null,null,null,null,null,null,null,null,null,null,null,null,"indiquer un pourcentage",null,{"$f":"1-O33","v":1},"petits déjeuners engagés"]
[]
[null,"Nous te souhaitons une bonne découverte et prise en main de l'outil, en espérant qu'il pourra t'accompagner au mieux dans ta démarche de transition écologique :)",null,null,null,null,"Nombre de voitures de visiteur·ses",null,null,null,null,null,"Energie de cuisson"]
[]
[null,null,null,null,null,null,null,null,null,null,null,null,"Fréquence des courses"]
[null,null,null,null,null,null,"Distance moyenne parcourue (aller-retour)",null,null,null,null,null,"avec le mode de transport du camp"]
[null,null,null,null,null,null,null,null,null,"km",null,null,null,null,null,null,"Note:\nIl s'agit ici uniquement des déchets organiques (restes, épluchures, etc.). Il faut prendre en compte les déchets sur toute la durée du camp"]
[null,null,null,null,null,null,null,null,null,null,null,null,"Déchets alimentaires résiduels"]
[null,null,null,null,null,null,"Activités",null,null,null,null,null,"Au compost",null,null,"kg"]
[null,null,null,null,null,null,null,null,null,null,null,null,"En ordures ménagères",null,null,"kg"]
[]
[null,null,null,null,null,null,"Distance parcourue en voiture pour les explos ou d'autres activités spécifiques",null,null,null,null,null,"Matériel"]
[]
[null,null,null,null,null,null,null,null,null,"km"]
[null,null,null,null,null,null,null,null,null,null,null,null,"Durée d'utilisation du matériel",null,null,null,"Note:\nIl s'agit ici de la durée d'utilisation et d'entretien du même matériel, avant qu'il ne soit remplacé."]
[null,null,null,null,null,null,"Autorisation de faire du feu pour les veillées",null,null,null,null,null,"Tente canadienne",null,null,"camps"]
[null,null,null,null,null,null,null,null,null,null,null,null,"Rouchie/Marabout",null,null,"camps"]
[null,null,null,null,null,null,null,null,null,null,null,null,"Malle",null,null,"camps"]
[]
[null,null,null,null,null,"Attention à bien remplir toutes les cases claires pour obtenir des résultats cohérents"]

{"sheet":"Résultats","index":1,"n_rows":44,"n_cols":16,"rows_kept":44,"cut":false,"hidden":false,"merged":[[4,12,5,14],[4,15,5,17],[20,12,33,18],[6,14,6,18],[7,14,7,18],[8,14,8,18],[7,12,10,12],[11,12,12,15],[13,12,14,18],[9,14,9,18],[36,12,37,15],[43,1,49,4],[38,12,49,18],[18,12,19,18],[10,14,10,18]]}
[]
[]
[]
[]
[null,"Résultats et analyses",null,null,null,null,null,null,null,null,null,null,"ça correspond à quoi,",null,null,{"$f":"ROUND(C7,0) & \" kgCO2e ?\"","v":"0 kgCO2e ?"}]
[]
[null,"Total",{"$f":"SUM($C$8:$C$12)","v":0},{"$f":"D15","v":"kgCO2e"},null,null,null,null,null,null,null,null,null,{"$f":"IFERROR($C$7/(SUM(jeunes,respons)*duree)/(11200/365),\"\")","v":""},{"$f":"IFERROR(\"Une empreinte carbone du camp par jour et par personne d'environ \" & ROUND((100*$C$7/(SUM(jeunes,respons)*duree)/(11200/365)),0) & \"% de la moyenne française\",\"\")","v":""}]
[null,{"$f":"B15","v":"Alimentation"},{"$f":"C15","v":0},{"$f":"D15","v":"kgCO2e"},null,null,null,null,null,null,null,null,"l'équivalent de",{"$f":"$C$7/(11200/365)","v":0},"de l'empreinte carbone moyenne d'un·e français·e "]
[null,{"$f":"B20","v":"Transport"},{"$f":"C20","v":0},{"$f":"D20","v":"kgCO2e"},null,null,null,null,null,null,null,null,null,{"$f":"$C$7/Données!$C$49","v":0},"en voiture (thermique)"]
[null,{"$f":"B28","v":"Energies"},{"$f":"C28","v":0},{"$f":"D28","v":"kgCO2e"},null,null,null,null,null,null,null,null,null,{"$f":"$C$7/1000","v":0},"Aller-retours Paris<>New-York en avion"]
[null,{"$f":"B34","v":"Matériel"},{"$f":"C34","v":0},{"$f":"D34","v":"kgCO2e"},null,null,null,null,null,null,null,null,null,{"$f":"$C$7/Données!C65","v":0},"sacs de couchage neufs"]
[null,{"$f":"B38","v":"Déchets Organiques"},{"$f":"C38","v":0},{"$f":"D38","v":"kgCO2e"},null,null,null,null,null,null,null,null,"Quelles pistes d'amélioration ?"]
[]
[null,null,null,null,null,null,null,null,null,null,null,null,"Clique ici pour découvrir des pistes d'action !\nEn attendant des publications officielles de l'association, quelques éléments de réflexion. Ces éléments sont issus d'un travail bénévole amateur, à toi de te les approprier et de faire tes choix en fonction des résultats de ce bilan carbone"]
[null,"Alimentation",{"$f":"SUM($C$16:$C$18)","v":0},"kgCO2e"]
[null,"Petits-déjeuners",{"$f":"duree*((respons+SUMPRODUCT(jeunes,Données!$C$14:$C$17))*(SUMPRODUCT('Mon camp'!$O$33:$O$34,Petits_dej)))","v":0},"kgCO2e"]
[null,"Repas",{"$f":"IFERROR(duree*((respons+SUMPRODUCT(jeunes,Données!$C$14:$C$17))*(2*VLOOKUP(projetalim,Données!$A$58:$C$61,3,0))),0)","v":0},"kgCO2e"]
[null,"Goûters",{"$f":"duree*(respons+SUMPRODUCT(jeunes,Données!$C$14:$C$17))*Données!$C$64","v":0},"kgCO2e"]
[null,null,null,null,null,null,null,null,null,null,null,null,"Limites de ce bilan carbone"]
[null,"Transport",{"$f":"SUM($C$21:$C$26)","v":0},"kgCO2e"]
[null,"Trajets participant-es",{"$f":"(SUM(jeunes)+respons)*2*(IFERROR(VLOOKUP(modeTr1,coefMobilite,3,0),0)*IFERROR(VLOOKUP(modeTr1,facteursTr,3,0),0)*TRkm1+IFERROR(VLOOKUP(modeTr2,coefMobilite,3,0),0)*IFERROR(VLOOKUP(modeTr2,facteursTr,3,0),0)*TRkm2)","v":0},"kgCO2e",null,null,null,null,null,null,null,null,"> Données manquantes ou peu fiables\nL'analyse des émissions de CO2 se base sur les éléments quantifiables à partir des données disponibles. Certaines données ne sont pas disponibles ou scientifiquement peu fiables et n'ont donc pas été prises en compte ici.\nC'est notamment le cas des émissions de CO2 dues aux feux que l'on fait en camp, en veillée ou pour la préparation des repas. Ces émissions ne sont pas négligeables mais malheureusement non quantifiables à ce jour.\n\n> Approximations\nDe plus, les données disponibles ne sont pas toujours fiables et des approximations (parfois importantes) ont dû être réalisées. Les résultats doivent être interprêtés comme des ordres de grandeurs pour évaluer son impact et définir des pistes d'amélioration, et non comme des valeurs précises et valides."]
[null,"Transport matériel",{"$f":"IFERROR(distance*2*_xlfn.SWITCH(TRmatos,Données!$E$2,Données!$C$54,Données!$E$3,2*Données!$C$54,Données!E4,0),0)","v":0},"kgCO2e"]
[null,"Courses",{"$f":"IFERROR(ROUNDUP(duree/VLOOKUP(freq_courses,table_freq_courses,3,0),0)*dist_courses*2*_xlfn.SWITCH(modeTrCamp,Données!$B$2,0,Données!$B$3,Données!$C$49,Données!$B$4,Données!$C$54),0)","v":0},"kgCO2e"]
[null,"Visites",{"$f":"'Mon camp'!$I$37*'Mon camp'!$I$40*Données!$C$49","v":0},"kgCO2e"]
[null,"Convoyage véhicules",{"$f":"'Mon camp'!$O$14*'Mon camp'!$O$16*Données!$C$49","v":0},"kgCO2e"]
[null,"Activités",{"$f":"'Mon camp'!$I$47*Données!$C$49","v":0},"kgCO2e"]
[]
[null,"Energies",{"$f":"SUM($C$29:$C$30)","v":0},"kgCO2e"]
[null,"Electricité",{"$f":"duree*Données!$C$19*Données!$C$56","v":0},"kgCO2e"]
[null,"Gaz",{"$f":"SUM($C$31:$C$32)","v":0},"kgCO2e"]
[null,"de cuisine",{"$f":"IFERROR(VLOOKUP('Mon camp'!$O$36,Données!$A$20:$C$22,3,0),0)*Données!$C$57*duree*SUM(jeunes:respons)","v":0},"kgCO2e"]
[null,"pour le chauffe-eau",{"$f":"IF('Mon camp'!$I$28=Données!$C$2,Données!$C$23*duree*0.5*SUM(jeunes,respons),0)","v":0},"kgCO2e"]
[]
[null,"Matériel",{"$f":"SUM($C$35:$C$36)","v":0},"kgCO2e"]
[null,"Matériel collectif",{"$f":"IFERROR(SUMPRODUCT(Données!$C$70:$C$72,1/'Mon camp'!$O$49:$O$51,Données!$C$43:$C$45),0)","v":0},"kgCO2e"]
[null,"Matériel personnel",{"$f":"SUM(jeunes,respons)*SUMPRODUCT(Données!$C$65:$C$69,1/Données!$C$38:$C$42)","v":0},"kgCO2e"]
[null,null,null,null,null,null,null,null,null,null,null,null,"D'autres pistes de réflexion ?"]
[null,"Déchets Organiques",{"$f":"SUM($C$39:$C$40)","v":0},"kgCO2e"]
[null,"Compost",{"$f":"'Mon camp'!$O$42*Données!$C$73","v":0},"kgCO2e",null,null,null,null,null,null,null,null,"Le bilan carbone se focalise sur les émissions de CO2 mais ce ne sont pas les\nseuls impacts sur l'environnement que nous avons en camp. En effet, un camp peut également impacter son environnement et notamment :\n> L'eau et les sols : les produits cosmétiques et d'entretien peuvent impacter la qualité de l'eau et des sols. Attention donc aux rejets !\n> Biodiversité : Des installations, un groupe de jeunes génèrent des modifications et pollutions (sonores, visuelles) dans l'environnement de la biodiversité qui nous entoure.\n> La qualité de l'air : les feux de cuisine et veillée (et la voiture dans une moindre mesure) peuvent libérer des particules qui polluent l'air de la région. Bien que ce soit négligeable, prenons l'habitude de préparer des feux en combustion complète.\n> etc."]
[null,"Ordures ménagères",{"$f":"'Mon camp'!$O$43*Données!$C$74","v":0},"kgCO2e"]
[]
[]
[null,{"$f":"IF('Mon camp'!$I$50=\"Oui\",\"Feu\",\"\")","v":""}]
[null,{"$f":"IF('Mon camp'!$I$50=\"Oui\",\"Attention, l'impact du feu n'est pas pris en compte dans le bilan carbone, faute de données suffisantes pour le calculer. La combustion a cependant un impact conséquent en termes d'émissions de dioxyde de carbone, particulièrement pour les combustion\" &\"s non complètes (avec fumée) et ne doit pas être négligé dans l'impact environnemental du camp.\",\"\")","v":""}]

{"sheet":"Données","index":2,"n_rows":74,"n_cols":7,"rows_kept":74,"cut":false,"hidden":false,"merged":[[54,5,54,15],[55,5,55,15],[56,5,56,15],[72,5,72,15],[73,5,73,15],[68,5,71,15],[65,5,65,15],[66,5,66,15],[61,5,61,15],[62,5,62,15],[63,5,63,15],[64,5,64,15],[58,5,58,15],[59,5,59,15],[60,5,60,15],[67,5,67,15],[47,5,47,15],[13,3,17,3],[37,3,41,3],[19,3,22,3],[57,5,57,15],[32,10,32,11],[33,10,33,11],[34,10,34,11],[35,10,35,11],[36,10,36,11],[53,5,53,15],[48,5,48,15],[49,5,49,15],[50,5,50,15],[51,5,51,15],[52,5,52,15]]}
["Modes de transport","Transport sur le camp","Bool","Projet alimentaire","Mode de transport du matériel","Energie de cuisson","Fréquence des courses"]
["Vélo","Vélo - Marche","Oui","Repas végétariens (ou presque)","Camion x1","Gaz","Tous les jours"]
["Covoiturage","Voiture","Non","Repas à dominante végétale","Camion x2","Bois","Tous les 2 jours"]
["Minibus","Minibus",null,"Repas dit \"classiques\"","Inclus dans le transport des participants ou déjà sur place","Mix bois-gaz","Tous les 3 jours"]
["Car de groupe",null,null,"Repas à dominante animale",null,null,"Tous les 4 jours"]
["Train - TER",null,null,null,null,null,"Tous les 5 jours"]
["Train - TGV",null,null,null,null,null,"Tous les 6 jours"]
["Avion",null,null,null,null,null,"Une fois par semaine"]
[]
[]
[]
[]
["Intitulé dans l'outil","Coefficients","Valeur","Unité/commentaires/source"]
["lutin·es","Alimentation par âge",{"$f":"$C$15","v":0.8},"Source: Rapport d'étude"]
["louveteaux·louvettes","Alimentation par âge",0.8]
["éclé·es","Alimentation par âge",1.1000000000000001]
["aîné·es","Alimentation par âge",1.2]
["responsables","Alimentation par âge",1]
[null,"Consommation électrique journalière (frigo, éclairage, ordinateur)",1.048,"kWh/jour, Source: ADEME","Etude ADEME Panel ElecDom 2020"]
["Gaz","Consommation journalière de gaz - cuisine au gaz",0.25,"kWh de gaz/jour.pers,\nSource: Rapport d'étude"]
["Mix bois-gaz","Consommation journalière de gaz - cuisine bois-gaz",{"$f":"C20*0.4","v":0.1}]
["Bois","Consommation journalière de gaz - cuisine bois",0]
[null,"Consommation journalière de gaz - chauffe-eau",0.57999999999999996]
["Vélo - Marche","Mobilité",1]
["Covoiturage","Mobilité",{"$f":"1/4","v":0.25},"pour 4 personnes par voiture"]
["Minibus","Mobilité",{"$f":"1/8","v":0.125},"pour 8 personnes dans le minibus"]
["Car de groupe","Mobilité",1]
["Train - TER","Mobilité",1]
["Train - TGV","Mobilité",1]
["Avion","Mobilité",1]
["Tous les jours","Frequence courses",1]
["Tous les 2 jours","Frequence courses",2]
["Tous les 3 jours","Frequence courses",3]
["Tous les 4 jours","Frequence courses",4]
["Tous les 5 jours","Frequence courses",5]
["Tous les 6 jours","Frequence courses",6]
["Une fois par semaine","Frequence courses",7]
["Duvet","Durée d'utilisation",6,"en nombre de camps,\nSource: Rapport d'étude","arbitraire"]
["Chaussures de marche","Durée d'utilisation",2,null,"arbitraire"]
["Sac à dos","Durée d'utilisation",6,null,"arbitraire"]
["Tapis de sol","Durée d'utilisation",2.5,null,"arbitraire"]
["Popote","Durée d'utilisation",5,null,"arbitraire"]
["Tente canadienne","Nombre nécessaire",{"$f":"1+SUM(respons,jeunes)/6","v":1},"1 tente support + 1 tente pour 6"]
["Rouchie","Nombre nécessaire",{"$f":"SUM(respons,jeunes)/20","v":0},"1 pour 20"]
["Malle","Nombre nécessaire",{"$f":"4+SUM(respons,jeunes)/6","v":4},"4 pour les communs + 1 malle pour 6"]
[]
[]
["Intitulé dans l'outil","Facteur d'émission","Valeur","Unité","Source","Source"]
["Covoiturage","Voiture motorisation moyenne",0.216,"kgCO2e/km","Base Carbone - ADEME - GT Transport Base Carbone - Article L229-25 de la loi TECV - \"Avion Moyen Courrier (2018)\"","Base Carbone - ADEME - GT Transport Base Carbone - Article L229-25 de la loi TECV - \"Voiture - Motorisation moyenne - 2018\""]
["Avion","Avion - Moyen",0.19933333333333333,"kgCO2e/peq.km",null,"Base Carbone - ADEME - GT Transport Base Carbone - Article L229-25 de la loi TECV - Moyenne Avion Court-Moyen-Long Courrier (2018)"]
["Train - TGV","Train - TGV (2019)",2.3600000000000001E-3,"kgCO2e/passager.km","Base Carbone - ADEME - GT Transport Base Carbone - Article L229-25 de la loi TECV et L1431-3 du Code des Transports - \"TGV (2019)\"","Base Carbone - ADEME - GT Transport Base Carbone - Article L229-25 de la loi TECV et L1431-3 du Code des Transports - \"TGV (2019)\""]
["Train - TER","Train - TER (2019)",2.9600000000000001E-2,"kgCO2e/passager.km","Base Carbone - ADEME - GT Transport Base Carbone - Article L229-25 de la loi TECV et L1431-3 du Code des Transports - \"TER (2019)\"","Base Carbone - ADEME - GT Transport Base Carbone - Article L229-25 de la loi TECV et L1431-3 du Code des Transports - \"TER (2019)\""]
[{"$f":"$A$5","v":"Car de groupe"},"Car - Transport collectif",2.9499999999999998E-2,"kgCO2e/passager.km","Base Carbone - ADEME - GT Transport Base Carbone - Article L229-25 de la loi TECV et L1431-3 du Code des Transports - \"Autocar - gazole\"","Base Carbone - ADEME - GT Transport Base Carbone - Article L229-25 de la loi TECV et L1431-3 du Code des Transports - \"Autocar - gazole\""]
["Minibus","VUL (minibus, petit camion)",0.30023999999999995,"kgCO2e/km","SDES, RSVERO - 2021 et Base Carbone","SDES, CITEPA - 2020"]
["Vélo - Marche","Modes actifs",0,"kgCO2e/km","/"]
[null,"Consommation électricité (Mix Moyen 2021)",5.6899999999999999E-2,"kgCO2e/kWh","Base Carbone - ADEME - Article L229-25 de la loi TECV","Base Carbone - ADEME - Article L229-25 de la loi TECV"]
[null,"Gaz naturel (mix moyen 2015)",0.22700000000000001,"kgCO2e/kWh","SGDF","Base Carbone - ADEME - GRTgaz"]
[{"$f":"D2","v":"Repas végétariens (ou presque)"},"Repas végétarien",0.51,"kgCO2e/repas.pers","Base Carbone - ADEME","Base Carbone - ADEME - \"Repas végétarien\""]
[{"$f":"D3","v":"Repas à dominante végétale"},"Moyenne repas à dominante végétale",1.4049999999999998,"kgCO2e/repas.pers","Base Carbone - ADEME","Base Carbone - ADEME - \"Repas à dominante végétale\" - Moyenne poulet et bœuf"]
[{"$f":"D4","v":"Repas dit \"classiques\""},"Moyenne repas classique",3.8200000000000003,"kgCO2e/repas.pers","Base Carbone - ADEME","Base Carbone - ADEME - \"Repas classique\" - Moyenne poulet et bœuf"]
[{"$f":"D5","v":"Repas à dominante animale"},"Moyenne repas à dominante animale",4.42,"kgCO2e/repas.pers","Base Carbone - ADEME","Base Carbone - ADEME - \"Repas à dominante animale \" - Moyenne poulet et bœuf"]
[null,"Petit déjeuner classique",0.75540150000000006,"kgCO2e/petitdej.pers","Base Carbone - ADEME - pour un petit déjeuner type calculé","Base Carbone - ADEME - Combinaison de produits pour un petit déjeuner"]
[null,"Petit déjeuner engagé",0.62784477272727268,"kgCO2e/petitdej.pers","Base Carbone - ADEME - pour un petit déjeuner type calculé","Base Carbone - ADEME - Combinaison de produits pour un petit déjeuner"]
[null,"Goûter",0.28100000000000003,"kgCO2e/gouter.pers",null,"Base Carbone - ADEME - Combinaison de produits pour un goûter"]
[null,"Duvet",21.29,"kgCO2e/produit","Decathlon - Sac de couchage trekking 10°C ","Sac de couchage type sélectionné chez Decathlon"]
[null,"Chaussures de marche",18.7,"kgCO2e/produit","Base Carbone - ADEME","Base Carbone - ADEME - Chaussures de sport"]
[null,"Sac à dos",19.38,"kgCO2e/produit","Decathlon - Engagements","Evaluation environnementale des produits Décathlon - Sac à dos type"]
[null,"Popote",2.2999999999999998,"kgCO2e/produit","cf simapro avec uniquement matière première","Bilan Carbone SGDF 2021 - réalisé par Crowe"]
[null,"Tapis de sol",1.92,"kgCO2e/produit","cf simapro avec uniquement matière première","Analyse approchée de l'impact des matières premières et de la fin de vie du produit - SimaPro\n(Hors procédés de fabrication et transport)"]
[null,"Tente canadienne",206,"kgCO2e/produit","cf simapro avec uniquement matière première"]
[null,"Rouchie",1180,"kgCO2e/produit","cf simapro avec uniquement matière première"]
[null,"Malle",16,"kgCO2e/produit","cf simapro avec uniquement matière première"]
[null,"Déchets - Compost",2.8000000000000001E-2,"kgCO2e/kg",null,"Base Carbone - ADEME - GT Déchet - \"Déchets de cuisine et déchets verts, compostage domestique en tas\""]
[null,"Déchets - Ordures ménagères",0.17199999999999999,"kgCO2e/kg",null,"Base Carbone - ADEME - GT Déchet - \"Ordures ménagères résiduelles - Fin de vie moyenne - Combinaison Impact et Emissions évitées\""]